bitfinex-derivatives/quotes_ETHF0:USTF0_20250426
["timestamp","ask_amount","ask_price","bid_price","bid_amount"]
[1745640669842,2.84143,1799.3,1799.2,1.11113]
[1745640670038,2.84143,1799.3,1799.2,3.68803]
[1745640670234,8.14943,1799.3,1799.2,3.68803]
[1745640670434,8.14943,1799.3,1799.2,2.5769]
[1745640674338,11.35723,1799.3,1799.2,2.5769]
[1745640674639,11.35723,1799.3,1799.2,1.7103]
[1745640675441,11.35723,1799.3,1799.0,1.6968]
[1745640675442,1.1112,1799.1,1799.0,0.8612]
[1745640675641,4.319,1799.1,1799.0,0.8612]
[1745640676039,5.9389,1799.1,1799.0,0.8612]
[1745640676440,5.9389,1799.1,1798.9,6.4246]
[1745640677040,1.6614,1799.0,1798.9,6.4246]
[1745640683144,3.2078,1799.1,1799.0,1.11126]
[1745640683334,3.2078,1799.1,1799.0,3.71186]
[1745640684644,2.75,1799.3,1799.1,1.11117]
[1745640684844,1.11113,1799.2,1799.1,3.69407]
[1745640685038,2.75001,1799.3,1799.1,3.69407]
[1745640685342,8.05801,1799.3,1799.1,3.69407]
[1745640685939,1.11113,1799.2,1799.1,3.69407]
[1745640686136,2.74873,1799.2,1799.1,3.69407]
[1745640686340,1.6376,1799.2,1799.1,3.69407]
[1745640687943,1.1112,1799.1,1799.0,4.5178]
[1745640688143,1.1112,1799.1,1799.0,3.646]
[1745640688447,1.11132,1799.0,1798.8,1.11137]
[1745640688643,2.467,1798.9,1798.8,1.11137]
[1745640688839,3.57832,1798.9,1798.8,1.11137]
[1745640689048,4.37172,1798.9,1798.8,1.11137]
[1745640689346,3.2604,1798.9,1798.8,1.11137]
[1745640689748,2.467,1798.9,1798.8,1.11137]
[1745640689942,2.467,1798.9,1798.8,2.73837]
[1745640690646,4.31908,1799.0,1798.9,1.11132]
[1745640690949,1.11128,1799.0,1798.9,1.11132]
[1745640691147,1.11128,1799.0,1798.9,1.94772]
[1745640691446,1.7413,1799.0,1798.9,1.94772]
[1745640691842,2.85256,1799.0,1798.9,1.94772]
[1745640695049,1.7413,1799.0,1798.9,1.94772]
[1745640695250,1.7413,1799.0,1798.9,2.79782]
[1745640697342,1.11124,1799.1,1799.0,1.11126]
[1745640697547,1.11124,1799.1,1799.0,2.75616]
[1745640697756,5.97438,1799.2,1799.0,2.75616]
[1745640697954,5.97438,1799.2,1799.1,2.7561]
[1745640698254,11.28238,1799.2,1799.1,2.7561]
[1745640698552,9.62698,1799.2,1799.1,2.7561]
[1745640699051,8.5158,1799.2,1799.1,2.7561]
[1745640699652,6.41913,1799.2,1799.1,2.7561]
[1745640699854,9.62693,1799.2,1799.1,1.6449]
[1745640700059,11.37183,1799.2,1799.1,1.6449]
[1745640700251,6.06383,1799.2,1799.1,1.6449]
[1745640701951,6.06383,1799.2,1799.0,4.75721]
[1745640702257,6.06383,1799.2,1799.0,6.36401]
[1745640702457,1.7095,1799.1,1799.0,6.36401]
[1745640704858,4.9173,1799.1,1799.0,6.36401]
[1745640706059,3.2078,1799.1,1799.0,6.36401]
[1745640708460,4.319,1799.1,1799.0,5.2528]
[1745640708653,5.9403,1799.1,1799.0,6.36406]
[1745640708859,5.9403,1799.1,1799.0,3.646]
[1745640710259,1.11126,1799.0,1798.9,5.3315]
[1745640710461,2.70506,1799.0,1798.9,6.9857]
[1745640712465,2.70506,1799.0,1798.9,8.09702]
[1745640713356,2.70506,1799.0,1798.9,6.9857]
[1745640713862,2.70506,1799.0,1798.9,6.1356]
[1745640714853,2.70506,1799.0,1798.9,7.24692]
[1745640715059,2.70506,1799.0,1798.9,6.1356]
[1745640716660,2.70506,1799.0,1798.9,7.24692]
[1745640720162,2.70506,1799.0,1798.9,6.1356]
[1745640721771,3.57276,1799.0,1798.9,6.1356]
[1745640723276,6.78056,1799.0,1798.9,6.1356]
[1745640723773,6.78056,1799.0,1798.9,7.24692]
[1745640723968,3.2078,1799.0,1798.9,7.24692]
[1745640725570,1.1112,1799.1,1799.0,1.11126]
[1745640725770,1.1112,1799.1,1799.0,2.4637]
[1745640726269,2.728,1799.1,1799.0,2.4637]
[1745640727372,1.11126,1799.0,1798.9,4.4814]
[1745640727572,3.60146,1799.0,1798.9,4.4814]
[1745640728476,2.77849,1798.8,1798.4,3.644]
[1745640728774,4.31937,1798.5,1798.4,5.3126]
[1745640729169,4.31937,1798.5,1798.4,3.644]
[1745640729583,6.01307,1798.5,1798.4,3.644]
[1745640732373,6.01307,1798.5,1798.4,3.644]
[1745640734692,4.9015,1798.5,1798.4,4.75563]
[1745640735092,4.9015,1798.5,1797.9,3.2078]
[1745640735293,6.0131,1798.5,1798.3,1.11168]
[1745640735791,6.0131,1798.5,1798.2,1.1117]
[1745640735984,6.0131,1798.5,1798.3,2.4745]
[1745640736179,1.11163,1798.4,1798.3,2.4745]
[1745640736791,6.01311,1798.5,1798.3,3.58619]
[1745640738090,6.01311,1798.5,1798.4,1.6122]
[1745640738591,9.9015,1798.5,1798.0,4.4827]
[1745640738893,1.11169,1798.3,1798.1,3.52921]
[1745640739094,4.31949,1798.3,1798.2,1.6122]
[1745640739283,5.99039,1798.3,1798.2,1.6122]
[1745640741194,4.8787,1798.3,1798.2,2.72395]
[1745640741397,3.2078,1798.3,1798.2,2.72395]
[1745640742191,3.2078,1798.3,1798.2,8.03195]
[1745640743688,1.11163,1798.4,1798.3,1.11169]
[1745640743887,4.31943,1798.4,1798.3,3.64709]
[1745640745199,4.31943,1798.4,1798.3,8.95509]
[1745640746290,4.31943,1798.4,1798.3,3.64709]
[1745640746899,4.31943,1798.4,1798.3,1.6629]
[1745640747091,1.11175,1798.2,1798.1,3.3947]
[1745640747485,1.11175,1798.2,1798.1,2.5365]
[1745640747690,2.71825,1798.2,1798.1,2.5365]
[1745640748993,2.71825,1798.2,1798.1,3.64831]
[1745640749194,1.6065,1798.2,1798.1,3.64831]
[1745640749400,3.2078,1798.4,1798.2,1.11175]
[1745640749700,3.2078,1798.4,1798.3,1.93669]
[1745640750096,4.31943,1798.4,1798.3,1.93669]
[1745640750493,3.2078,1798.4,1798.3,1.93669]
[1745640751301,4.31943,1798.4,1798.3,1.93669]
[1745640753597,1.11163,1798.4,1798.3,1.93669]
[1745640753803,4.31943,1798.4,1798.3,1.93669]
[1745640754304,4.31943,1798.4,1798.3,0.825]
[1745640754707,4.31943,1798.4,1798.3,3.62509]
[1745640754904,3.2078,1798.4,1798.3,3.62509]
[1745640755105,4.31943,1798.4,1798.3,3.62509]
[1745640756806,1.11163,1798.4,1798.3,3.62509]
[1745640757008,4.31943,1798.4,1798.3,3.62509]
[1745640757303,4.31943,1798.4,1798.3,2.5134]
[1745640758707,3.2078,1798.4,1798.1,0.8052]
[1745640759007,1.11175,1798.2,1798.1,3.3559]
[1745640759599,2.74405,1798.2,1798.1,3.3559]
[1745640761509,5.95185,1798.2,1798.1,3.3559]
[1745640764911,5.95185,1798.2,1798.1,2.4799]
[1745640765307,1.11181,1798.1,1798.0,3.644]
[1745640765506,2.86661,1798.1,1798.0,3.644]
[1745640766502,3.68551,1798.1,1798.0,3.644]
[1745640770716,2.86661,1798.1,1798.0,5.396]
[1745640777019,2.86661,1798.1,1798.0,3.644]
[1745640780427,2.77969,1798.0,1797.3,3.2078]
[1745640780627,0.27810223,1798.7,1797.9,3.2078]
[1745640780825,0.27810223,1798.9,1798.7,1.11141]
[1745640781030,0.27810223,1799.2,1799.1,1.1112]
[1745640781224,0.27810223,1799.2,1799.0,4.75325]
[1745640781431,0.27810223,1799.2,1799.0,3.642]
[1745640781727,0.27810223,1799.2,1799.1,2.7754]
[1745640782029,0.27810223,1799.2,1799.1,3.6386]
[1745640788038,3.2078,1799.4,1799.2,1.11113]
[1745640788039,0.27810223,1799.3,1799.2,1.11113]
[1745640788233,0.27810223,1799.3,1799.2,3.66953]
[1745640793646,3.48590223,1799.4,1799.3,1.11107]
[1745640793835,3.48590223,1799.4,1799.3,2.69977]
[1745640794240,8.79390223,1799.4,1799.3,2.69977]
[1745640794851,3.2078,1799.6,1799.5,1.11095]
[1745640795154,3.65524044,1800.1,1800.0,1.11064]
[1745640795444,5.87,1800.5,1800.0,1.11064]
[1745640795445,1.6411,1800.3,1800.2,1.11052]
[1745640795643,3.2078,1800.3,1800.1,1.5887]
[1745640795847,1.6056,1800.2,1800.0,1.11059]
[1745640796149,1.6056,1800.2,1799.9,4.31845]
[1745640796348,1.6056,1800.2,1799.9,3.2078]
[1745640796547,0.8739,1800.1,1799.9,4.31846]
[1745640796743,0.8739,1800.1,1799.7,4.7508]
[1745640796744,1.6056,1800.0,1799.7,4.7508]
[1745640796950,1.6056,1800.0,1799.9,1.1107]
[1745640797149,6.9136,1800.0,1799.9,1.1107]
[1745640797552,5.308,1800.0,1799.9,1.1107]
[1745640798044,5.308,1800.0,1799.9,4.3185]
[1745640798242,0.8019,1800.3,1800.2,1.11052]
[1745640798443,4.8134,1800.4,1800.3,1.11045]
[1745640799143,10.1214,1800.4,1800.3,1.11045]
[1745640801253,10.1214,1800.4,1800.2,2.77578]
[1745640801753,10.1214,1800.4,1800.0,3.639]
[1745640802156,1.11052,1800.2,1800.0,4.74962]
[1745640802452,2.4791,1800.1,1800.0,4.74962]
[1745640802752,2.4791,1800.1,1800.0,3.639]
[1745640803055,7.7871,1800.1,1800.0,4.74964]
[1745640803956,8.89768,1800.1,1800.0,4.74964]
[1745640804146,7.7871,1800.1,1800.0,4.74964]
[1745640804547,8.89768,1800.1,1800.0,3.639]
[1745640804749,7.7871,1800.1,1800.0,4.74964]
[1745640808059,7.7871,1800.1,1800.0,6.38484]
[1745640809758,8.89768,1800.1,1800.0,6.38484]
[1745640810153,8.89768,1800.1,1800.0,4.74964]
[1745640810355,8.89768,1800.1,1800.0,3.639]
[1745640810553,8.89768,1800.1,1800.0,4.74964]
[1745640810754,8.89768,1800.1,1800.0,3.639]
[1745640810956,5.308,1800.1,1800.0,4.74964]
[1745640811155,4.9417,1800.4,1800.3,1.11045]
[1745640812162,10.2497,1800.4,1800.3,1.11045]
[1745640812559,7.0419,1800.4,1800.3,1.11045]
[1745640812755,10.2497,1800.4,1800.3,1.11045]
[1745640814355,11.36009,1800.4,1800.3,1.11045]
[1745640815752,8.15229,1800.4,1800.3,1.11045]
[1745640816162,7.0419,1800.4,1800.3,1.11045]
[1745640817065,8.15229,1800.4,1800.3,1.11045]
[1745640817367,7.0419,1800.4,1800.3,1.11045]
[1745640817557,8.15229,1800.4,1800.3,1.11045]
[1745640817952,7.0419,1800.4,1800.3,1.11045]
[1745640818158,8.15229,1800.4,1800.3,1.11045]
[1745640818455,7.0419,1800.4,1800.0,4.4989]
[1745640818660,1.11058,1800.1,1800.0,4.4989]
[1745640819164,6.41858,1800.1,1800.0,3.639]
[1745640819564,5.308,1800.1,1800.0,4.74964]
[1745640820367,6.41858,1800.1,1800.0,3.639]
[1745640820767,8.82818,1800.1,1800.0,3.639]
[1745640821164,7.7176,1800.1,1800.0,4.74964]
[1745640821563,7.7176,1800.1,1800.0,6.38554]
[1745640822066,8.82818,1800.1,1800.0,5.2749]
[1745640822469,8.82818,1800.1,1800.0,6.38554]
[1745640823162,7.7176,1800.1,1800.0,6.38554]
[1745640823765,15.9254,1800.1,1799.6,3.2078]
[1745640823959,1.11089,1799.6,1799.5,6.9223]
[1745640824262,1.11086,1799.7,1799.5,8.03321]
[1745640824469,1.11086,1799.7,1799.6,1.6933]
[1745640824863,1.11086,1799.7,1799.6,2.80419]
[1745640825573,2.79521,1799.8,1799.6,2.80419]
[1745640826170,8.10321,1799.8,1799.6,2.80419]
[1745640827577,1.11082,1799.7,1799.6,1.6933]
[1745640827771,2.72972,1799.7,1799.6,2.80419]
[1745640827972,1.6189,1799.7,1799.6,2.80419]
[1745640830070,1.1108,1799.8,1799.6,2.80419]
[1745640830274,2.7427,1799.8,1799.7,1.6557]
[1745640830669,1.6319,1799.8,1799.7,2.76652]
[1745640830869,2.74266,1799.8,1799.7,2.76652]
[1745640831177,8.05066,1799.8,1799.7,1.6557]
[1745640834076,6.9399,1799.8,1799.5,6.33992]
[1745640834380,1.11089,1799.6,1799.5,8.02082]
[1745640834678,1.11107,1799.4,1799.2,4.74813]
[1745640834879,1.11107,1799.4,1799.2,7.23853]
[1745640835071,1.11107,1799.4,1799.3,1.6809]
[1745640835276,6.41907,1799.4,1799.3,1.6809]
[1745640836869,8.10697,1799.4,1799.3,1.6809]
[1745640837072,6.9959,1799.4,1799.3,2.79197]
[1745640837480,8.10691,1799.4,1799.3,2.79197]
[1745640839080,6.9959,1799.4,1799.3,2.79197]
[1745640839973,6.9959,1799.4,1799.3,3.65197]
[1745640842184,8.10691,1799.4,1799.3,3.65197]
[1745640842381,6.9959,1799.4,1799.3,2.5409]
[1745640842586,6.9959,1799.4,1799.3,3.65197]
[1745640843082,8.10691,1799.4,1799.3,3.65197]
[1745640843681,8.10691,1799.4,1799.3,2.5409]
[1745640844385,1.11107,1799.3,1799.2,4.4465]
[1745640844686,2.81847,1799.3,1799.2,6.0623]
[1745640844879,3.65617,1799.3,1799.2,6.0623]
[1745640845382,8.96417,1799.3,1799.2,6.0623]
[1745640845684,8.96417,1799.3,1799.2,7.17343]
[1745640846279,8.96417,1799.3,1799.2,6.0623]
[1745640846780,8.96417,1799.3,1799.2,7.17343]
[1745640847384,7.8531,1799.3,1799.2,7.17343]
[1745640848486,7.0154,1799.3,1799.2,7.17343]
[1745640850186,8.12647,1799.3,1799.2,6.0623]
[1745640852482,8.12647,1799.3,1799.2,7.17343]
[1745640852883,7.0154,1799.3,1799.2,7.17343]
[1745640853682,8.12647,1799.3,1799.2,6.0623]
[1745640854993,8.12647,1799.3,1799.2,3.637]
[1745640855999,8.12647,1799.3,1799.2,4.74813]
[1745640858801,8.12647,1799.3,1799.2,3.637]
[1745640860290,8.99387,1799.3,1799.2,3.637]
[1745640860695,8.99387,1799.3,1799.2,4.74813]
[1745640862808,1.11113,1799.2,1799.1,1.6544]
[1745640863000,3.50593,1799.2,1799.1,1.6544]
[1745640864202,8.81393,1799.2,1799.1,1.6544]
[1745640864596,8.81393,1799.2,1799.0,6.34851]
[1745640864896,2.6931,1799.1,1799.0,8.02571]
[1745640865103,2.6931,1799.1,1799.0,6.9145]
[1745640865399,2.6931,1799.1,1799.0,6.1072]
[1745640866803,1.11126,1799.0,1798.9,3.2225]
[1745640867006,2.69246,1799.0,1798.9,3.2225]
[1745640867206,2.69246,1799.0,1798.9,3.2078]
[1745640868301,1.5812,1799.0,1798.9,4.31912]
[1745640868497,1.5812,1799.0,1798.9,6.05922]
[1745640868697,1.5812,1799.0,1798.9,2.85142]
[1745640869206,2.69246,1799.0,1798.9,2.85142]
[1745640872998,1.11132,1798.9,1798.8,0.8405]
[1745640873206,1.11132,1798.9,1798.7,0.0147]
[1745640873207,1.11138,1798.8,1798.7,0.0147]
[1745640873406,4.0238,1798.8,1798.5,2.6089]
[1745640873603,1.6678,1798.7,1798.3,3.637]
[1745640873810,1.11163,1798.4,1798.3,4.4972]
[1745640874010,9.0778,1798.8,1798.3,7.705]
[1745640874305,4.31895,1799.2,1799.0,1.11123]
[1745640874513,4.31895,1799.2,1798.9,1.11127]
[1745640874714,4.8756,1799.2,1799.0,1.7487]
[1745640874912,5.98678,1799.2,1799.0,2.85996]
[1745640875410,4.8756,1799.2,1799.0,2.85996]
[1745640875609,1.6678,1799.2,1799.1,3.6748]
[1745640876411,1.6678,1799.2,1799.1,2.5636]
[1745640876606,2.77893,1799.2,1799.1,2.5636]
[1745640877202,6.9758,1799.2,1799.1,2.5636]
[1745640878416,8.08693,1799.2,1799.1,3.4106]
[1745640880609,1.11125,1799.1,1798.8,4.74834]
[1745640880813,3.56585,1799.1,1798.9,2.5782]
[1745640881214,1.7242,1799.0,1798.9,2.5782]
[1745640881614,1.7242,1799.0,1798.9,3.68952]
[1745640885419,1.97865,1799.1,1798.9,3.68952]
[1745640885620,0.8674,1799.1,1799.0,2.81356]
[1745640885920,2.8484,1799.3,1799.1,1.11116]
[1745640886219,2.8484,1799.3,1799.2,1.7023]
[1745640886421,2.93563386,1799.3,1799.2,2.4995]
[1745640887224,8.24363386,1799.3,1799.2,2.4995]
[1745640891020,8.24363135,1799.3,1799.2,2.4995]
[1745640892521,8.24363184,1799.3,1799.2,2.4995]
[1745640894634,5.39523184,1799.3,1799.2,3.61063]
[1745640894823,1.30843223,1799.3,1799.2,8.61063]
[1745640895229,3.2078,1799.6,1799.5,1.11095]
[1745640895732,4.3187,1799.6,1799.4,1.11096]
[1745640895924,4.3187,1799.6,1799.5,1.6273]
[1745640896124,4.3187,1799.6,1799.5,2.4701]
[1745640896329,11.2246,1799.6,1799.5,2.4701]
[1745640897722,5.308,1799.6,1799.5,3.58105]
[1745640897923,5.308,1799.6,1799.5,8.58105]
[1745640898127,3.2078,1800.0,1799.9,1.1107]
[1745640898332,4.8057,1800.2,1800.1,1.11058]
[1745640898536,3.2078,1800.5,1800.0,6.8438]
[1745640898722,3.2078,1800.5,1800.3,1.11042]
[1745640898927,3.2078,1800.5,1800.4,1.7152]
[1745640899133,8.97226552,1800.5,1800.4,1.7152]
[1745640899533,8.5158,1800.5,1800.4,1.7152]
[1745640900329,8.5158,1800.5,1800.4,2.82559]
[1745640901031,5.308,1800.5,1800.4,2.82559]
[1745640903136,8.5158,1800.5,1800.4,2.82559]
[1745640903624,5.308,1800.5,1800.4,2.82559]
[1745640904328,8.5158,1800.5,1800.4,2.82559]
[1745640907632,5.308,1800.5,1800.4,2.82559]
[1745640907832,8.5158,1800.5,1800.4,2.82559]
[1745640909637,8.5158,1800.5,1800.4,1.7152]
[1745640909836,13.60296837,1800.5,1800.0,3.636]
[1745640910031,1.11058,1800.1,1800.0,3.636]
[1745640910231,1.11058,1800.1,1799.9,2.5026]
[1745640910437,1.6381,1800.0,1799.9,2.5026]
[1745640910739,1.6381,1800.0,1799.9,3.6133]
[1745640910938,2.4938,1800.0,1799.9,1.1107]
[1745640911134,7.8018,1800.0,1799.9,1.1107]
[1745640911535,7.8018,1800.0,1799.9,2.721]
[1745640913436,7.8018,1800.0,1799.8,1.94033]
[1745640913643,1.6973,1799.9,1799.8,0.8296]
[1745640913835,1.6973,1799.9,1799.8,3.55066]
[1745640914232,7.0053,1799.9,1799.8,3.55066]
[1745640916740,11.32382,1799.9,1799.7,4.74478]
[1745640916941,1.7308,1799.8,1799.7,6.40808]
[1745640917139,7.0388,1799.8,1799.7,3.634]
[1745640917340,7.0388,1799.8,1799.7,4.74482]
[1745640917744,8.14956,1799.8,1799.6,4.8095]
[1745640918044,1.5835,1799.7,1799.6,5.92036]
[1745640918342,5.308,1799.7,1799.6,5.92036]
[1745640920331,6.41882,1799.7,1799.6,4.0116]
[1745640920544,8.13302,1799.7,1799.6,4.0116]
[1745640920943,8.13302,1799.7,1799.6,3.2078]
[1745640921834,7.0222,1799.7,1799.6,3.2078]
[1745640922039,8.13308,1799.7,1799.4,4.74597]
[1745640922240,3.66061,1799.6,1799.4,2.83787]
[1745640922446,1.7142,1799.5,1799.4,2.83787]
[1745640923545,5.308,1799.6,1799.5,1.11095]
[1745640923851,5.308,1799.6,1799.5,2.83035]
[1745640925953,7.0311,1799.6,1799.5,2.83035]
[1745640926547,3.96017,1799.6,1799.5,14.67215]
[1745640926746,2.45509,1799.6,1799.5,14.67215]
[1745640926951,3.2078,1800.1,1800.0,1.11064]
[1745640927953,1.687,1800.1,1800.0,1.11064]
[1745640928150,2.79758,1800.1,1799.9,3.62826]
[1745640928457,6.995,1800.1,1800.0,1.11064]
[1745640929059,8.10558,1800.1,1800.0,1.11064]
[1745640929249,6.995,1800.1,1800.0,1.11064]
[1745640929758,6.995,1800.1,1800.0,3.62284]
[1745640937661,8.10558,1800.1,1800.0,1.6458]
[1745640937856,1.1107,1799.9,1799.8,3.2078]
[1745640938058,3.63728,1800.0,1799.8,3.2078]
[1745640938254,7.8447,1799.9,1799.8,4.31856]
[1745640939859,7.8447,1799.9,1799.8,5.92326]
[1745640940160,7.8447,1799.9,1799.8,6.73296]
[1745640940563,7.8447,1799.9,1799.8,3.52516]
[1745640948865,2.15389,1799.9,1799.8,8.52516]
[1745640949066,0.27779321,1800.3,1800.2,1.11052]
[1745640949267,0.8157,1800.7,1800.2,1.11052]
[1745640949268,0.27779321,1800.7,1800.3,2.77614]
[1745640949472,0.27779321,1800.7,1800.6,1.11027]
[1745640949671,0.8157,1801.0,1800.8,1.11015]
[1745640949672,0.27779321,1800.9,1800.8,1.11015]
[1745640950168,7.24529321,1800.9,1800.8,1.11015]
[1745640950971,7.24529321,1800.9,1800.7,1.11016]
[1745640951469,0.27779321,1800.5,1800.1,1.11052]
[1745640951669,0.27779321,1800.3,1800.1,0.8613]
[1745640951868,0.27779321,1800.3,1800.2,1.11052]
[1745640952068,5.58579321,1800.3,1800.2,1.11052]
[1745640952269,5.58579321,1800.3,1800.2,2.81972]
[1745640954776,5.58579321,1800.3,1800.2,11.02752]
[1745640954977,3.16366321,1800.3,1800.2,11.02752]
[1745640955278,0.25375321,1800.3,1800.2,11.02752]
[1745640955472,3.21e-06,1800.3,1800.2,11.02752]
[1745640956179,1.6832,1800.9,1800.8,1.11015]
[1745640957068,1.6832,1800.9,1800.7,2.81687]
[1745640957277,8.10129,1800.9,1800.7,2.81687]
[1745640957672,1.11021,1800.7,1800.6,3.633]
[1745640957877,1.11031,1800.6,1800.3,5.3397]
[1745640958065,1.11031,1800.6,1800.4,1.11038]
[1745640958066,0.8137,1800.5,1800.4,1.11038]
[1745640958468,2.4781,1800.5,1800.4,1.11038]
[1745640958671,2.4781,1800.5,1800.4,2.81708]
[1745640959177,7.7861,1800.5,1800.4,2.81708]
[1745640960074,7.7861,1800.5,1800.4,1.11038]
[1745640960279,1.11049,1800.3,1800.1,8.02096]
[1745640960480,2.74584,1800.4,1800.1,8.02096]
[1745640960676,1.6354,1800.2,1800.1,8.02096]
[1745640961181,6.9434,1800.2,1800.1,8.02096]
[1745640962871,5.308,1800.2,1800.1,8.02096]
[1745640963067,5.308,1800.2,1800.1,13.02096]
[1745640963280,3.2078,1800.6,1800.1,11.9104]
[1745640963484,1.11039,1800.4,1800.2,1.6012]
[1745640963778,1.6569,1800.3,1800.2,1.6012]
[1745640964278,1.6569,1800.3,1799.9,62.357]
[1745640964279,6.6569,1800.3,1799.8,3.2078]
[1745640964581,1.11069,1800.0,1799.8,6.8398]
[1745640964786,1.6569,1799.9,1799.8,8.441]
[1745640965181,6.9649,1799.9,1799.8,8.441]
[1745640966576,6.9649,1799.9,1799.8,9.55176]
[1745640967868,6.9649,1799.9,1799.8,6.34396]
[1745640968486,8.0756,1799.9,1799.8,5.2332]
[1745640968982,7.7836,1799.9,1799.8,5.2332]
[1745640970478,8.8943,1799.9,1799.8,5.2332]
[1745640976180,1.11089,1799.6,1799.5,4.8733]
[1745640976386,1.11089,1799.6,1799.5,10.1616]
[1745640977978,2.76365,1799.7,1799.5,11.27252]
[1745640978678,2.76365,1799.7,1799.6,2.73719]
[1745640978987,1.6528,1799.7,1799.6,2.73719]
[1745640979185,8.07162,1799.7,1799.6,2.73719]
[1745640980084,6.41882,1799.7,1799.6,2.73719]
[1745640983980,6.41882,1799.7,1799.6,1.6263]
[1745640984377,5.308,1799.7,1799.6,10.94499]
[1745640984577,4.09848,1799.7,1799.6,10.94499]
[1745640984877,0.27782408,1800.7,1800.0,1.11064]
[1745640985081,3.82994408,1800.7,1800.4,1.11035]
[1745640985282,3.82994408,1800.7,1800.5,1.68]
[1745640985486,1.6166,1800.6,1800.5,1.68]
[1745640986189,10.41022408,1800.6,1800.5,1.68]
[1745640986581,10.41022408,1800.6,1800.1,7.632]
[1745640986790,1.38823408,1800.4,1800.2,2.7905]
[1745640986988,1.07732408,1800.3,1800.2,2.7905]
[1745640987288,6.38532408,1800.3,1800.2,1.1105]
[1745640987683,7.49577408,1800.3,1800.1,7.632]
[1745640987878,8.05342408,1800.3,1800.2,1.11052]
[1745640988086,6.38532408,1800.3,1800.2,1.11052]
[1745640989193,1.07732408,1800.3,1800.2,1.11052]
[1745640989389,0.27782408,1800.3,1800.2,1.11052]
[1745640991493,1.38824408,1800.4,1800.1,7.632]
[1745640991686,0.27782408,1800.2,1800.1,7.632]
[1745640991887,0.27782408,1800.2,1800.1,8.74258]
[1745640992092,0.27782408,1800.3,1800.2,1.11052]
[1745640992894,1.90022408,1800.3,1800.2,1.11052]
[1745640993095,7.20822408,1800.3,1800.2,1.11052]
[1745640994595,8.31871408,1800.3,1800.1,8.74254]
[1745640994992,1.7347,1800.2,1800.1,8.74254]
[1745640996095,2.01252408,1800.2,1800.1,8.74254]
[1745640997894,0.27782408,1800.2,1800.1,8.74254]
[1745640998092,0.27782408,1800.4,1800.1,7.632]
[1745640998292,1.94792408,1800.4,1800.1,7.632]
[1745640998502,1.11047,1800.3,1800.2,1.1105]
[1745640999099,6.41847,1800.3,1800.2,1.1105]
[1745640999302,5.58582408,1800.3,1800.2,1.1105]
[1745640999801,7.21542408,1800.3,1800.2,1.1105]
[1745641000201,8.32587408,1800.3,1800.2,1.1105]
[1745641001402,7.21542408,1800.3,1800.2,1.1105]
[1745641001698,7.21542408,1800.3,1800.2,2.8013]
[1745641001899,8.32587408,1800.3,1800.2,2.8013]
[1745641003606,8.32880694,1800.3,1800.2,2.8013]
[1745641004806,8.32880694,1800.3,1800.2,1.6908]
[1745641005496,8.32880694,1800.3,1800.2,2.80132]
[1745641005696,8.32880694,1800.3,1800.2,1.6908]
[1745641006807,1.38834408,1800.2,1800.1,3.633]
[1745641007000,3.89984408,1800.2,1800.1,3.633]
[1745641007198,10.05224408,1800.2,1800.1,3.633]
[1745641007902,13.26004408,1800.2,1800.1,3.633]
[1745641009210,10.05224408,1800.2,1800.1,3.633]
[1745641009607,13.26004408,1800.2,1800.1,3.633]
[1745641011109,10.05224408,1800.2,1800.1,3.633]
[1745641011310,13.26004408,1800.2,1800.1,3.633]
[1745641012610,10.05224408,1800.2,1800.1,3.633]
[1745641012807,13.26004408,1800.2,1800.1,3.633]
[1745641013306,12.41564408,1800.2,1800.1,3.633]
[1745641013709,9.20784408,1800.2,1800.1,3.633]
[1745641013908,6.38362408,1800.2,1800.1,3.633]
[1745641014206,6.38362408,1800.2,1800.1,4.74358]
[1745641014400,5.58582408,1800.2,1800.1,7.95138]
[1745641014600,5.58582408,1800.2,1800.1,9.60118]
[1745641014807,5.58582408,1800.2,1800.1,6.39338]
[1745641015213,0.27782408,1800.2,1800.1,6.39338]
[1745641018411,2.74272408,1800.2,1800.1,6.39338]
[1745641019307,1.11572408,1800.2,1800.1,6.39338]
[1745641020811,2.22624408,1800.2,1800.1,5.2828]
[1745641021108,5.58582408,1800.2,1800.1,3.633]
[1745641021301,5.58582408,1800.2,1800.1,4.74358]
[1745641021807,5.58582408,1800.2,1800.1,6.40278]
[1745641025213,5.58582408,1800.2,1800.1,2.76978]
[1745641029313,6.69634408,1800.2,1800.1,2.76978]
[1745641029511,5.58582408,1800.2,1800.1,2.76978]
[1745641030717,7.18422408,1800.2,1800.1,1.11058]
[1745641030907,7.99602408,1800.2,1800.1,1.11058]
[1745641031114,9.10654408,1800.2,1800.1,1.11058]
[1745641031312,9.10654408,1800.2,1800.0,2.80649]
[1745641031516,1.08852408,1800.1,1800.0,2.80649]
[1745641032219,6.39652408,1800.1,1800.0,2.80649]
[1745641033514,6.39652408,1800.1,1799.9,5.56686]
[1745641033714,7.50714408,1800.1,1799.9,7.18534]
[1745641033910,1.11064,1800.0,1799.9,7.18534]
[1745641034126,6.69646408,1800.0,1799.9,7.18534]
[1745641034326,5.58582408,1800.0,1799.9,7.18534]
[1745641039430,1.11085,1799.7,1799.6,3.632]
[1745641039732,1.38871408,1799.6,1799.5,0.8062]
[1745641040032,1.11095,1799.5,1799.4,4.8258]
[1745641040538,1.14972408,1799.6,1799.4,4.8258]
[1745641040835,2.26061408,1799.6,1799.5,1.618]